[Event "Titled Tuesday Blitz January 03 Late 2023"]
[White "Mendez Fortes, Eduardo Jesus"]
[Black "Saric, Ibro"]
[WhiteFideId "3502376"]
[BlackFideId "14401290"]
[WhiteElo "2250"]
[BlackElo "2531"]
[Result "0-1"]
[Round "09"]
[TimeControl "180+2"]
[Date "2023.01.03"]
[WhiteClock "0:00:19"]
[BlackClock "0:00:20"]

1. e4 {[%clk 0:03:00]}  c5 {[%clk 0:02:59]} 2. Nf3 {[%clk 0:03:01]}  e6 {[%clk 0:02:59]} 3. d4 {[%clk 0:03:01]}  cxd4 {[%clk 0:03:00]} 4. Nxd4 {[%clk 0:03:02]}  a6 {[%clk 0:03:01]} 5. c4 {[%clk 0:03:03]}  d6 {[%clk 0:03:00]} 6. Nc3 {[%clk 0:03:03]}  Nd7 {[%clk 0:02:58]} 7. Be2 {[%clk 0:03:03]}  b6 {[%clk 0:02:58]} 8. O-O {[%clk 0:03:03]}  Bb7 {[%clk 0:02:58]} 9. f3 {[%clk 0:03:03]}  g6 {[%clk 0:02:55]} 10. Be3 {[%clk 0:03:00]}  Qc7 {[%clk 0:02:54]} 11. Qd2 {[%clk 0:02:59]}  Bg7 {[%clk 0:02:54]} 12. Rfd1 {[%clk 0:02:48]}  Rd8 {[%clk 0:02:45]} 13. a4 {[%clk 0:02:45]}  Ngf6 {[%clk 0:02:43]} 14. a5 {[%clk 0:02:45]}  O-O {[%clk 0:02:36]} 15. Bf1 {[%clk 0:02:39]}  d5 {[%clk 0:02:03]} 16. axb6 {[%clk 0:02:27]}  Nxb6 {[%clk 0:02:00]} 17. exd5 {[%clk 0:02:25]}  exd5 {[%clk 0:02:00]} 18. c5 {[%clk 0:02:07]}  Nc4 {[%clk 0:01:56]} 19. Bxc4 {[%clk 0:02:05]}  dxc4 {[%clk 0:01:57]} 20. Qf2 {[%clk 0:02:02]}  Rfe8 {[%clk 0:01:51]} 21. c6 {[%clk 0:01:56]}  Bxc6 {[%clk 0:01:43]} 22. Rxa6 {[%clk 0:01:52]}  Bb7 {[%clk 0:01:40]} 23. Raa1 {[%clk 0:01:44]}  Nd5 {[%clk 0:01:31]} 24. Ndb5 {[%clk 0:01:34]}  Qe7 {[%clk 0:01:08]} 25. Bc5 {[%clk 0:01:23]}  Qf6 {[%clk 0:00:30]} 26. Nxd5 {[%clk 0:01:11]}  Rxd5 {[%clk 0:00:29]} 27. Rxd5 {[%clk 0:01:06]}  Bxd5 {[%clk 0:00:30]} 28. Nc7 {[%clk 0:00:42]}  Qxb2 {[%clk 0:00:20]} 29. Qxb2 {[%clk 0:00:27]}  Bxb2 {[%clk 0:00:21]} 30. Rb1 {[%clk 0:00:24]}  Rc8 {[%clk 0:00:21]} 31. Nxd5 {[%clk 0:00:20]}  Rxc5 {[%clk 0:00:21]} 32. Nf6+ {[%clk 0:00:19]}  Bxf6 {[%clk 0:00:20]} 0-1


[Site "https://www.chess.com"]

[Event "Titled Tuesday Blitz January 03 Late 2023"]
[White "Cristobal, Manuel"]
[Black "Bilan, Danila"]
[WhiteFideId "112879"]
[BlackFideId "24161918"]
[WhiteElo "2257"]
[BlackElo "2303"]
[Result "0-1"]
[Round "09"]
[TimeControl "180+2"]
[Date "2023.01.03"]
[WhiteClock "0:00:20"]
[BlackClock "0:00:06"]

1. d4 {[%clk 0:03:00]}  d5 {[%clk 0:02:58]} 2. Bf4 {[%clk 0:02:59]}  Nf6 {[%clk 0:02:58]} 3. e3 {[%clk 0:03:00]}  c5 {[%clk 0:02:58]} 4. Nf3 {[%clk 0:02:55]}  cxd4 {[%clk 0:02:56]} 5. exd4 {[%clk 0:02:55]}  Nc6 {[%clk 0:02:57]} 6. c3 {[%clk 0:02:55]}  Bg4 {[%clk 0:02:56]} 7. Nbd2 {[%clk 0:02:53]}  e6 {[%clk 0:02:55]} 8. Bd3 {[%clk 0:02:52]}  Bd6 {[%clk 0:02:24]} 9. Bxd6 {[%clk 0:02:45]}  Qxd6 {[%clk 0:02:24]} 10. O-O {[%clk 0:02:43]}  O-O {[%clk 0:02:22]} 11. h3 {[%clk 0:02:38]}  Bh5 {[%clk 0:02:21]} 12. Re1 {[%clk 0:02:38]}  a6 {[%clk 0:02:13]} 13. a4 {[%clk 0:02:34]}  Qc7 {[%clk 0:02:00]} 14. Qb3 {[%clk 0:02:29]}  Bg6 {[%clk 0:01:41]} 15. Bxg6 {[%clk 0:02:23]}  hxg6 {[%clk 0:01:41]} 16. Ne5 {[%clk 0:02:22]}  Nxe5 {[%clk 0:01:39]} 17. Rxe5 {[%clk 0:02:22]}  b5 {[%clk 0:01:30]} 18. axb5 {[%clk 0:02:17]}  axb5 {[%clk 0:01:30]} 19. Rae1 {[%clk 0:02:00]}  b4 {[%clk 0:01:15]} 20. cxb4 {[%clk 0:01:56]}  Rfb8 {[%clk 0:01:13]} 21. Qc3 {[%clk 0:01:08]}  Qb6 {[%clk 0:01:06]} 22. Nf3 {[%clk 0:01:02]}  Qxb4 {[%clk 0:01:01]} 23. Qe3 {[%clk 0:01:02]}  Qxb2 {[%clk 0:00:57]} 24. Rxe6 {[%clk 0:01:02]}  fxe6 {[%clk 0:00:42]} 25. Qxe6+ {[%clk 0:01:01]}  Kh8 {[%clk 0:00:41]} 26. Ne5 {[%clk 0:00:45]}  Kh7 {[%clk 0:00:11]} 27. Nf7 {[%clk 0:00:38]}  Qd2 {[%clk 0:00:08]} 28. Re3 {[%clk 0:00:36]}  Ne4 {[%clk 0:00:05]} 29. Rf3 {[%clk 0:00:20]}  Ra1+ {[%clk 0:00:05]} 30. Kh2 {[%clk 0:00:20]}  Qe1 {[%clk 0:00:06]} 0-1


[Site "https://www.chess.com"]

[Event "Titled Tuesday Blitz January 03 Late 2023"]
[White "Goryachkina, Aleksandra"]
[Black "Di Berardino, Diego Rafael"]
[WhiteFideId "4147103"]
[BlackFideId "2105446"]
[WhiteElo "2571"]
[BlackElo "2479"]
[Result "0-1"]
[Round "09"]
[TimeControl "180+2"]
[Date "2023.01.03"]
[WhiteClock "0:00:04"]
[BlackClock "0:00:08"]

1. e4 {[%clk 0:03:00]}  c5 {[%clk 0:02:57]} 2. Nf3 {[%clk 0:03:00]}  b6 {[%clk 0:02:54]} 3. d4 {[%clk 0:02:51]}  cxd4 {[%clk 0:02:53]} 4. Nxd4 {[%clk 0:02:52]}  Bb7 {[%clk 0:02:52]} 5. Bd3 {[%clk 0:02:52]}  Nc6 {[%clk 0:02:52]} 6. Nxc6 {[%clk 0:02:48]}  Bxc6 {[%clk 0:02:53]} 7. O-O {[%clk 0:02:47]}  e6 {[%clk 0:02:53]} 8. c4 {[%clk 0:02:42]}  Bc5 {[%clk 0:02:53]} 9. Nd2 {[%clk 0:02:27]}  Qh4 {[%clk 0:02:24]} 10. Nb3 {[%clk 0:02:18]}  Be7 {[%clk 0:02:00]} 11. Re1 {[%clk 0:01:57]}  Nf6 {[%clk 0:01:58]} 12. g3 {[%clk 0:01:55]}  Qh3 {[%clk 0:01:31]} 13. Bf1 {[%clk 0:01:54]}  Qg4 {[%clk 0:01:26]} 14. Qxg4 {[%clk 0:01:47]}  Nxg4 {[%clk 0:01:26]} 15. Nd4 {[%clk 0:01:18]}  Bc5 {[%clk 0:01:10]} 16. Rd1 {[%clk 0:01:08]}  e5 {[%clk 0:01:01]} 17. Nxc6 {[%clk 0:01:02]}  dxc6 {[%clk 0:00:37]} 18. Rd2 {[%clk 0:00:40]}  Rd8 {[%clk 0:00:36]} 19. Rc2 {[%clk 0:00:31]}  Rd1 {[%clk 0:00:24]} 20. Kg2 {[%clk 0:00:31]}  h5 {[%clk 0:00:11]} 21. h3 {[%clk 0:00:25]}  Nf6 {[%clk 0:00:10]} 22. Be2 {[%clk 0:00:19]}  Re1 {[%clk 0:00:05]} 23. Bf3 {[%clk 0:00:08]}  h4 {[%clk 0:00:05]} 24. b3 {[%clk 0:00:06]}  hxg3 {[%clk 0:00:04]} 25. fxg3 {[%clk 0:00:06]}  Nxe4 {[%clk 0:00:02]} 26. Bxe4 {[%clk 0:00:05]}  Rxe4 {[%clk 0:00:03]} 27. Bb2 {[%clk 0:00:05]}  f6 {[%clk 0:00:02]} 28. Rd1 {[%clk 0:00:05]}  Bd4 {[%clk 0:00:02]} 29. Rcd2 {[%clk 0:00:04]}  c5 {[%clk 0:00:02]} 30. b4 {[%clk 0:00:03]}  Kf7 {[%clk 0:00:02]} 31. bxc5 {[%clk 0:00:03]}  bxc5 {[%clk 0:00:03]} 32. Ba3 {[%clk 0:00:02]}  Rb8 {[%clk 0:00:03]} 33. Rc2 {[%clk 0:00:03]}  Ke7 {[%clk 0:00:03]} 34. Rcd2 {[%clk 0:00:02]}  Ke6 {[%clk 0:00:04]} 35. Rc2 {[%clk 0:00:03]}  Rb6 {[%clk 0:00:04]} 36. Bc1 {[%clk 0:00:02]}  Ra6 {[%clk 0:00:04]} 37. Kf3 {[%clk 0:00:02]}  f5 {[%clk 0:00:04]} 38. g4 {[%clk 0:00:02]}  g6 {[%clk 0:00:05]} 39. Rf1 {[%clk 0:00:01]}  Kf6 {[%clk 0:00:04]} 40. Kg2 {[%clk 0:00:01]}  Ke6 {[%clk 0:00:04]} 41. Kf3 {[%clk 0:00:02]}  Rb6 {[%clk 0:00:04]} 42. Kg2 {[%clk 0:00:02]}  Rb1 {[%clk 0:00:05]} 43. Kf3 {[%clk 0:00:02]}  Rb4 {[%clk 0:00:04]} 44. Kg2 {[%clk 0:00:02]}  Rb1 {[%clk 0:00:04]} 45. Kf3 {[%clk 0:00:02]}  Be3 {[%clk 0:00:04]} 46. Kg2 {[%clk 0:00:02]}  Bxc1 {[%clk 0:00:05]} 47. Rfxc1 {[%clk 0:00:02]}  Rxc1 {[%clk 0:00:05]} 48. Rxc1 {[%clk 0:00:02]}  fxg4 {[%clk 0:00:05]} 49. hxg4 {[%clk 0:00:02]}  Rxg4+ {[%clk 0:00:06]} 50. Kf3 {[%clk 0:00:03]}  Rd4 {[%clk 0:00:06]} 51. Rc3 {[%clk 0:00:03]}  Kf5 {[%clk 0:00:07]} 52. Ra3 {[%clk 0:00:03]}  Rd3+ {[%clk 0:00:06]} 53. Rxd3 {[%clk 0:00:03]}  e4+ {[%clk 0:00:07]} 54. Ke3 {[%clk 0:00:03]}  exd3 {[%clk 0:00:08]} 55. Kxd3 {[%clk 0:00:04]}  Kf4 {[%clk 0:00:08]} 0-1


[Site "https://www.chess.com"]

[Event "Titled Tuesday Blitz January 03 Late 2023"]
[White "Dourerassou, Jonathan"]
[Black "Martins, Bruno Andre Leite"]
[WhiteFideId "628050"]
[BlackFideId "1942255"]
[WhiteElo "2414"]
[BlackElo "2348"]
[Result "1/2-1/2"]
[Round "09"]
[TimeControl "180+2"]
[Date "2023.01.03"]
[WhiteClock "0:00:41"]
[BlackClock "0:00:07"]

1. d4 {[%clk 0:02:55]}  Nf6 {[%clk 0:02:58]} 2. Bg5 {[%clk 0:02:54]}  d5 {[%clk 0:02:53]} 3. Bxf6 {[%clk 0:02:52]}  gxf6 {[%clk 0:02:52]} 4. e3 {[%clk 0:02:53]}  c5 {[%clk 0:02:52]} 5. c3 {[%clk 0:02:51]}  Qb6 {[%clk 0:02:50]} 6. Qb3 {[%clk 0:02:49]}  Nc6 {[%clk 0:02:45]} 7. Nf3 {[%clk 0:02:48]}  c4 {[%clk 0:02:38]} 8. Qxb6 {[%clk 0:02:47]}  axb6 {[%clk 0:02:39]} 9. Nbd2 {[%clk 0:02:46]}  b5 {[%clk 0:02:36]} 10. Be2 {[%clk 0:02:36]}  e5 {[%clk 0:02:29]} 11. O-O {[%clk 0:02:35]}  e4 {[%clk 0:02:27]} 12. Nh4 {[%clk 0:02:32]}  f5 {[%clk 0:02:25]} 13. g3 {[%clk 0:02:29]}  Be7 {[%clk 0:02:23]} 14. Ng2 {[%clk 0:02:29]}  b4 {[%clk 0:02:20]} 15. Nf4 {[%clk 0:02:26]}  Be6 {[%clk 0:02:20]} 16. Nxc4 {[%clk 0:02:21]}  dxc4 {[%clk 0:02:11]} 17. d5 {[%clk 0:02:22]}  bxc3 {[%clk 0:02:03]} 18. bxc3 {[%clk 0:02:20]}  Ne5 {[%clk 0:01:37]} 19. dxe6 {[%clk 0:02:19]}  fxe6 {[%clk 0:01:38]} 20. Nxe6 {[%clk 0:02:06]}  Kf7 {[%clk 0:01:31]} 21. Nd4 {[%clk 0:02:06]}  Kf6 {[%clk 0:01:21]} 22. Rfb1 {[%clk 0:02:06]}  Bc5 {[%clk 0:01:13]} 23. Rxb7 {[%clk 0:01:59]}  Rhb8 {[%clk 0:01:14]} 24. Rxh7 {[%clk 0:01:57]}  Kg6 {[%clk 0:01:06]} 25. Rc7 {[%clk 0:01:43]}  Bd6 {[%clk 0:00:59]} 26. Rxc4 {[%clk 0:01:39]}  Nxc4 {[%clk 0:00:59]} 27. Bxc4 {[%clk 0:01:39]}  Kf6 {[%clk 0:00:52]} 28. Rd1 {[%clk 0:01:36]}  Be5 {[%clk 0:00:50]} 29. Bb3 {[%clk 0:01:33]}  Rd8 {[%clk 0:00:45]} 30. Kg2 {[%clk 0:01:30]}  Rac8 {[%clk 0:00:44]} 31. c4 {[%clk 0:01:27]}  Rd6 {[%clk 0:00:38]} 32. h4 {[%clk 0:01:24]}  Rcd8 {[%clk 0:00:37]} 33. c5 {[%clk 0:01:24]}  R6d7 {[%clk 0:00:29]} 34. c6 {[%clk 0:01:19]}  Rd6 {[%clk 0:00:19]} 35. Rc1 {[%clk 0:01:07]}  Bxd4 {[%clk 0:00:17]} 36. exd4 {[%clk 0:01:08]}  Rxd4 {[%clk 0:00:17]} 37. c7 {[%clk 0:01:09]}  Rc8 {[%clk 0:00:18]} 38. Rc6+ {[%clk 0:01:09]}  Ke7 {[%clk 0:00:13]} 39. Be6 {[%clk 0:01:09]}  Rxc7 {[%clk 0:00:10]} 40. Rxc7+ {[%clk 0:01:07]}  Kxe6 {[%clk 0:00:11]} 41. Ra7 {[%clk 0:01:05]}  Rd2 {[%clk 0:00:11]} 42. Ra5 {[%clk 0:01:05]}  e3 {[%clk 0:00:10]} 43. Ra6+ {[%clk 0:01:05]}  Ke5 {[%clk 0:00:09]} 44. Kf3 {[%clk 0:01:03]}  e2 {[%clk 0:00:07]} 45. Ra5+ {[%clk 0:01:00]}  Kf6 {[%clk 0:00:06]} 46. Ra6+ {[%clk 0:00:59]}  Kf7 {[%clk 0:00:06]} 47. Ra7+ {[%clk 0:00:59]}  Kf6 {[%clk 0:00:06]} 48. Ra6+ {[%clk 0:00:53]}  Ke7 {[%clk 0:00:06]} 49. Ra7+ {[%clk 0:00:53]}  Ke8 {[%clk 0:00:06]} 50. Ra8+ {[%clk 0:00:43]}  Kd7 {[%clk 0:00:06]} 51. Ra7+ {[%clk 0:00:42]}  Kd6 {[%clk 0:00:06]} 52. Ra6+ {[%clk 0:00:43]}  Ke5 {[%clk 0:00:06]} 53. Ra5+ {[%clk 0:00:40]}  Ke6 {[%clk 0:00:06]} 54. Ra6+ {[%clk 0:00:40]}  Kf7 {[%clk 0:00:07]} 55. Ra7+ {[%clk 0:00:40]}  Kf6 {[%clk 0:00:07]} 56. Ra6+ {[%clk 0:00:41]} 1/2-1/2


[Site "https://www.chess.com"]

[Event "Titled Tuesday Blitz January 03 Late 2023"]
[White "Morefield, Jason"]
[Black "ArchibaldCerveza29"]
[WhiteFideId "30920825"]
[WhiteElo "2167"]
[BlackElo "2509"]
[Result "1-0"]
[Round "09"]
[TimeControl "180+2"]
[Date "2023.01.03"]
[WhiteClock "0:01:33"]
[BlackClock "0:01:43"]

1. e4 {[%clk 0:03:00]}  e5 {[%clk 0:02:59]} 2. Nf3 {[%clk 0:03:00]}  Nc6 {[%clk 0:02:55]} 3. Bb5 {[%clk 0:02:59]}  g6 {[%clk 0:02:53]} 4. O-O {[%clk 0:02:58]}  Bg7 {[%clk 0:02:51]} 5. Re1 {[%clk 0:02:58]}  Nge7 {[%clk 0:02:50]} 6. c4 {[%clk 0:02:57]}  O-O {[%clk 0:02:48]} 7. d3 {[%clk 0:02:57]}  a6 {[%clk 0:02:47]} 8. Ba4 {[%clk 0:02:57]}  d6 {[%clk 0:02:48]} 9. Nc3 {[%clk 0:02:57]}  Bg4 {[%clk 0:02:46]} 10. h3 {[%clk 0:02:45]}  Bxf3 {[%clk 0:02:44]} 11. Qxf3 {[%clk 0:02:46]}  Nd4 {[%clk 0:02:44]} 12. Qd1 {[%clk 0:02:46]}  h6 {[%clk 0:02:39]} 13. Ne2 {[%clk 0:02:39]}  Nxe2+ {[%clk 0:02:34]} 14. Qxe2 {[%clk 0:02:40]}  Kh7 {[%clk 0:02:20]} 15. Be3 {[%clk 0:02:28]}  f5 {[%clk 0:02:20]} 16. f3 {[%clk 0:02:15]}  f4 {[%clk 0:02:18]} 17. Bf2 {[%clk 0:02:15]}  c5 {[%clk 0:02:15]} 18. Qd2 {[%clk 0:02:06]}  Nc6 {[%clk 0:02:08]} 19. Bxc6 {[%clk 0:02:05]}  bxc6 {[%clk 0:02:09]} 20. a3 {[%clk 0:01:58]}  a5 {[%clk 0:02:00]} 21. b4 {[%clk 0:01:57]}  cxb4 {[%clk 0:02:00]} 22. axb4 {[%clk 0:01:58]}  axb4 {[%clk 0:02:00]} 23. Qxb4 {[%clk 0:01:47]}  c5 {[%clk 0:02:00]} 24. Qb7 {[%clk 0:01:42]}  Qb8 {[%clk 0:01:54]} 25. Qd5 {[%clk 0:01:35]}  Qc7 {[%clk 0:01:45]} 26. Rxa8 {[%clk 0:01:32]}  Rxa8 {[%clk 0:01:43]} 27. Qxa8 {[%clk 0:01:33]} 1-0


[Site "https://www.chess.com"]

[Event "Titled Tuesday Blitz January 03 Late 2023"]
[White "Kalogeris, Ioannis"]
[Black "Garcia Ramos, Daniel"]
[WhiteFideId "4239563"]
[BlackFideId "32010311"]
[WhiteElo "2423"]
[BlackElo "2442"]
[Result "0-1"]
[Round "09"]
[TimeControl "180+2"]
[Date "2023.01.03"]
[WhiteClock "0:00:18"]
[BlackClock "0:00:16"]

1. e4 {[%clk 0:03:00]}  e6 {[%clk 0:02:59]} 2. d4 {[%clk 0:03:00]}  d5 {[%clk 0:02:59]} 3. Nc3 {[%clk 0:03:01]}  Bb4 {[%clk 0:02:57]} 4. e5 {[%clk 0:03:00]}  c5 {[%clk 0:02:57]} 5. a3 {[%clk 0:02:59]}  Bxc3+ {[%clk 0:02:57]} 6. bxc3 {[%clk 0:03:00]}  Nc6 {[%clk 0:02:58]} 7. Nf3 {[%clk 0:02:53]}  Qa5 {[%clk 0:02:53]} 8. Bd2 {[%clk 0:02:52]}  c4 {[%clk 0:02:53]} 9. h4 {[%clk 0:02:50]}  Nge7 {[%clk 0:02:46]} 10. h5 {[%clk 0:02:50]}  h6 {[%clk 0:02:46]} 11. g4 {[%clk 0:02:49]}  Bd7 {[%clk 0:02:41]} 12. g5 {[%clk 0:02:47]}  hxg5 {[%clk 0:02:38]} 13. Nxg5 {[%clk 0:02:47]}  f6 {[%clk 0:02:33]} 14. Nf3 {[%clk 0:02:16]}  fxe5 {[%clk 0:02:31]} 15. Nxe5 {[%clk 0:02:06]}  Nxe5 {[%clk 0:02:31]} 16. dxe5 {[%clk 0:02:07]}  O-O-O {[%clk 0:02:28]} 17. Rg1 {[%clk 0:01:50]}  Nf5 {[%clk 0:02:22]} 18. Bh3 {[%clk 0:01:49]}  Rdf8 {[%clk 0:02:18]} 19. Qe2 {[%clk 0:01:36]}  Kb8 {[%clk 0:02:13]} 20. Bxf5 {[%clk 0:01:19]}  Rxf5 {[%clk 0:02:12]} 21. Rxg7 {[%clk 0:01:19]}  Rfxh5 {[%clk 0:02:00]} 22. O-O-O {[%clk 0:00:51]}  Qxa3+ {[%clk 0:01:59]} 23. Kb1 {[%clk 0:00:51]}  Qa4 {[%clk 0:01:57]} 24. Qf3 {[%clk 0:00:38]}  Rf5 {[%clk 0:01:46]} 25. Qg2 {[%clk 0:00:35]}  Qb5+ {[%clk 0:01:45]} 26. Kc1 {[%clk 0:00:34]}  Qa5 {[%clk 0:01:33]} 27. Kb2 {[%clk 0:00:34]}  Qb6+ {[%clk 0:01:31]} 28. Kc1 {[%clk 0:00:33]}  Rxf2 {[%clk 0:01:29]} 29. Qg5 {[%clk 0:00:30]}  Qa5 {[%clk 0:01:21]} 30. Kb2 {[%clk 0:00:30]}  Qb5+ {[%clk 0:01:19]} 31. Kc1 {[%clk 0:00:30]}  Qa4 {[%clk 0:01:18]} 32. Kb2 {[%clk 0:00:30]}  d4 {[%clk 0:01:13]} 33. Rg8+ {[%clk 0:00:17]}  Rxg8 {[%clk 0:01:10]} 34. Qxg8+ {[%clk 0:00:18]}  Kc7 {[%clk 0:01:09]} 35. Qf8 {[%clk 0:00:18]}  dxc3+ {[%clk 0:00:56]} 36. Kxc3 {[%clk 0:00:19]}  Rxf8 {[%clk 0:00:16]} 37. Be3 {[%clk 0:00:18]}  Qa3+ {[%clk 0:00:16]} 0-1


[Site "https://www.chess.com"]

[Event "Titled Tuesday Blitz January 03 Late 2023"]
[White "Alikhanov, Felix"]
[Black "Graif, William"]
[WhiteFideId "4157427"]
[BlackFideId "2609835"]
[WhiteElo "2434"]
[BlackElo "2304"]
[Result "1-0"]
[Round "09"]
[TimeControl "180+2"]
[Date "2023.01.03"]
[WhiteClock "0:01:44"]
[BlackClock "0:00:06"]

1. e4 {[%clk 0:02:59]}  e5 {[%clk 0:02:54]} 2. Nf3 {[%clk 0:02:59]}  Bc5 {[%clk 0:02:54]} 3. Bc4 {[%clk 0:02:57]}  Nf6 {[%clk 0:02:52]} 4. d3 {[%clk 0:02:54]}  Nc6 {[%clk 0:02:51]} 5. O-O {[%clk 0:02:54]}  d6 {[%clk 0:02:44]} 6. h3 {[%clk 0:02:54]}  a6 {[%clk 0:02:38]} 7. c3 {[%clk 0:02:54]}  Na5 {[%clk 0:02:20]} 8. b4 {[%clk 0:02:53]}  Nxc4 {[%clk 0:02:19]} 9. bxc5 {[%clk 0:02:54]}  Na5 {[%clk 0:02:18]} 10. Qa4+ {[%clk 0:02:44]}  Nc6 {[%clk 0:02:17]} 11. cxd6 {[%clk 0:02:44]}  cxd6 {[%clk 0:02:08]} 12. d4 {[%clk 0:02:43]}  O-O {[%clk 0:01:59]} 13. d5 {[%clk 0:02:40]}  Na5 {[%clk 0:01:26]} 14. Bg5 {[%clk 0:02:36]}  b5 {[%clk 0:01:21]} 15. Qc2 {[%clk 0:02:33]}  h6 {[%clk 0:01:19]} 16. Bh4 {[%clk 0:02:33]}  Bd7 {[%clk 0:01:08]} 17. Nbd2 {[%clk 0:02:28]}  Rc8 {[%clk 0:01:05]} 18. Qd3 {[%clk 0:02:23]}  Qc7 {[%clk 0:00:35]} 19. Bxf6 {[%clk 0:02:20]}  gxf6 {[%clk 0:00:36]} 20. Rac1 {[%clk 0:02:18]}  Kh7 {[%clk 0:00:36]} 21. Nh4 {[%clk 0:02:12]}  Rg8 {[%clk 0:00:37]} 22. Qf3 {[%clk 0:02:10]}  Qd8 {[%clk 0:00:31]} 23. Nf5 {[%clk 0:02:06]}  Bxf5 {[%clk 0:00:27]} 24. exf5 {[%clk 0:02:04]}  Nc4 {[%clk 0:00:24]} 25. Ne4 {[%clk 0:02:03]}  Qe7 {[%clk 0:00:22]} 26. Kh2 {[%clk 0:02:00]}  Rg7 {[%clk 0:00:22]} 27. g4 {[%clk 0:02:00]}  Rh8 {[%clk 0:00:16]} 28. Ra1 {[%clk 0:01:54]}  h5 {[%clk 0:00:16]} 29. g5 {[%clk 0:01:50]}  Rxg5 {[%clk 0:00:07]} 30. Nxg5+ {[%clk 0:01:49]}  fxg5 {[%clk 0:00:08]} 31. f6 {[%clk 0:01:47]}  Qf8 {[%clk 0:00:06]} 32. Qxh5+ {[%clk 0:01:45]}  Kg8 {[%clk 0:00:07]} 33. Qxg5+ {[%clk 0:01:45]}  Kh7 {[%clk 0:00:07]} 34. Qh5+ {[%clk 0:01:43]}  Kg8 {[%clk 0:00:06]} 35. Rg1+ {[%clk 0:01:44]} 1-0


[Site "https://www.chess.com"]

[Event "Titled Tuesday Blitz January 03 Late 2023"]
[White "Davtyan, David Arm."]
[Black "Rangel, Daniel"]
[WhiteFideId "13310046"]
[BlackFideId "2124475"]
[WhiteElo "2344"]
[BlackElo "2207"]
[Result "0-1"]
[Round "09"]
[TimeControl "180+2"]
[Date "2023.01.03"]
[WhiteClock "0:00:10"]
[BlackClock "0:00:10"]

1. d4 {[%clk 0:03:00]}  d5 {[%clk 0:02:56]} 2. Nf3 {[%clk 0:03:01]}  Nf6 {[%clk 0:02:54]} 3. Bf4 {[%clk 0:03:01]}  g6 {[%clk 0:02:54]} 4. e3 {[%clk 0:03:02]}  Bg7 {[%clk 0:02:55]} 5. Be2 {[%clk 0:03:01]}  O-O {[%clk 0:02:56]} 6. O-O {[%clk 0:03:02]}  b6 {[%clk 0:02:57]} 7. h3 {[%clk 0:03:02]}  Bb7 {[%clk 0:02:57]} 8. Nbd2 {[%clk 0:03:00]}  c5 {[%clk 0:02:57]} 9. c3 {[%clk 0:03:00]}  Nc6 {[%clk 0:02:57]} 10. Re1 {[%clk 0:02:57]}  Nd7 {[%clk 0:02:57]} 11. a4 {[%clk 0:02:41]}  e5 {[%clk 0:02:41]} 12. dxe5 {[%clk 0:02:40]}  Ndxe5 {[%clk 0:02:41]} 13. Nxe5 {[%clk 0:02:38]}  Nxe5 {[%clk 0:02:42]} 14. Nf3 {[%clk 0:02:38]}  Qe7 {[%clk 0:02:34]} 15. a5 {[%clk 0:02:31]}  Bc6 {[%clk 0:02:27]} 16. Nxe5 {[%clk 0:02:24]}  Bxe5 {[%clk 0:02:26]} 17. Bxe5 {[%clk 0:02:25]}  Qxe5 {[%clk 0:02:26]} 18. Bf3 {[%clk 0:02:26]}  b5 {[%clk 0:02:18]} 19. Qd2 {[%clk 0:02:21]}  Rad8 {[%clk 0:02:06]} 20. b4 {[%clk 0:02:20]}  Qe7 {[%clk 0:01:26]} 21. bxc5 {[%clk 0:02:20]}  Qxc5 {[%clk 0:01:27]} 22. Qd4 {[%clk 0:02:19]}  Qe7 {[%clk 0:01:26]} 23. a6 {[%clk 0:02:12]}  Rd7 {[%clk 0:01:04]} 24. Reb1 {[%clk 0:01:52]}  Rb8 {[%clk 0:00:58]} 25. Rb4 {[%clk 0:01:49]}  Rb6 {[%clk 0:00:53]} 26. Ra5 {[%clk 0:01:47]}  Qd8 {[%clk 0:00:43]} 27. Be2 {[%clk 0:01:42]}  Qb8 {[%clk 0:00:40]} 28. Qc5 {[%clk 0:01:38]}  Rc7 {[%clk 0:00:37]} 29. Qd4 {[%clk 0:01:17]}  Rd7 {[%clk 0:00:33]} 30. h4 {[%clk 0:01:15]}  h5 {[%clk 0:00:32]} 31. g3 {[%clk 0:01:15]}  Rc7 {[%clk 0:00:32]} 32. g4 {[%clk 0:01:05]}  hxg4 {[%clk 0:00:30]} 33. Qxg4 {[%clk 0:01:06]}  Re7 {[%clk 0:00:30]} 34. h5 {[%clk 0:01:03]}  Bd7 {[%clk 0:00:29]} 35. Qg2 {[%clk 0:00:58]}  Re5 {[%clk 0:00:25]} 36. hxg6 {[%clk 0:00:57]}  Rxg6 {[%clk 0:00:26]} 37. Bg4 {[%clk 0:00:54]}  Reg5 {[%clk 0:00:25]} 38. f3 {[%clk 0:00:47]}  f5 {[%clk 0:00:24]} 39. Qd2 {[%clk 0:00:22]}  fxg4 {[%clk 0:00:22]} 40. f4 {[%clk 0:00:22]}  Rh5 {[%clk 0:00:21]} 41. c4 {[%clk 0:00:20]}  Rgh6 {[%clk 0:00:20]} 42. Qd4 {[%clk 0:00:17]}  Rh1+ {[%clk 0:00:18]} 43. Kg2 {[%clk 0:00:18]}  R6h2+ {[%clk 0:00:18]} 44. Kg3 {[%clk 0:00:18]}  Qd8 {[%clk 0:00:15]} 45. Qxd5+ {[%clk 0:00:17]}  Kh7 {[%clk 0:00:16]} 46. Qe4+ {[%clk 0:00:16]}  Kh8 {[%clk 0:00:16]} 47. Qe5+ {[%clk 0:00:16]}  Kg8 {[%clk 0:00:16]} 48. Qd5+ {[%clk 0:00:13]}  Kf8 {[%clk 0:00:12]} 49. Qd6+ {[%clk 0:00:13]}  Qe7 {[%clk 0:00:12]} 50. Qb8+ {[%clk 0:00:12]}  Kg7 {[%clk 0:00:11]} 51. Qe5+ {[%clk 0:00:11]}  Qxe5 {[%clk 0:00:11]} 52. fxe5 {[%clk 0:00:12]}  Rh3+ {[%clk 0:00:12]} 53. Kg2 {[%clk 0:00:11]}  R1h2+ {[%clk 0:00:12]} 54. Kg1 {[%clk 0:00:11]}  Bc6 {[%clk 0:00:09]} 55. cxb5 {[%clk 0:00:10]}  Rg2+ {[%clk 0:00:09]} 56. Kf1 {[%clk 0:00:10]}  Rh1# {[%clk 0:00:10]} 0-1


[Site "https://www.chess.com"]